Cogmind - Beta 14 @@@ ROGUE MODE // 2024.09.18 @ 00:13:51 Player: Cherman0 Result: Smashed by cave-in Performance ------------- Evolutions (0) 0 Regions Visited (2) 400 Robots Destroyed (35) 175 Value Destroyed (749) 749 Prototype IDs (2) 40 Alien Tech Used (0) 0 Bonus (0) 0 TOTAL SCORE: 1364 Bonus ------- None Cogmind --------- Core Integrity 0/250 Matter 285/300 Energy 100/100 System Corruption 1% Temperature Cool (0) Movement Treading (320) Ox2 Location -10/Subcaves Parts ------- > --- POWER (1) -------- (None) > --- PROPULSION (2) --- Light Treads Light Treads > --- UTILITY (2) ------ Huge Storage Unit Seismic Detector > --- WEAPON (2) ------- Light EM Pulse Cannon Maul > --- INVENTORY (25) --- Ion Engine Ion Engine Light Treads Light Treads Spiked Treads Disposable Heat Sink High-capacity Storage Unit High-capacity Matter Pod (200) Hardened Light Armor Plating Hardened Light Armor Plating Scrap Shield Medium Laser Light EM Pulse Cannon Light EM Pulse Cannon Battle Rifle Battle Rifle Subdweller Machine Gun Subdweller Machine Gun Subdweller Machine Gun Battle Cannon Grenade Launcher Subdweller Shrapnel Launcher Datajack Scrap Shield Fragment (48) Peak State ------------ > --- POWER ------------ Ion Engine > --- PROPULSION ------- Light Treads Light Treads > --- UTILITY ---------- Huge Storage Unit Hardened Light Armor Plating > --- WEAPON ----------- Light EM Pulse Cannon Battle Cannon > --- INVENTORY -------- Ion Engine Ion Engine Light Treads Light Treads Spiked Treads Disposable Heat Sink High-capacity Storage Unit High-capacity Matter Pod Seismic Detector Hardened Light Armor Plating Scrap Shield Medium Laser Light EM Pulse Cannon Light EM Pulse Cannon Light EM Pulse Cannon Battle Rifle Battle Rifle Subdweller Machine Gun Subdweller Machine Gun Grenade Launcher Subdweller Shrapnel Launcher Datajack Maul Scrap Shield Fragment [Rating: 14] Favorites ----------- Power Ion Engine Engine Ion Engine Propulsion Light Treads Treads Light Treads Leg Aluminum Leg Utility Huge Storage Unit Device Seismic Detector Storage Huge Storage Unit Protection Hardened Light Armor Plating Weapon Light EM Pulse Cannon Energy Gun Small Laser Energy Cannon Light EM Pulse Cannon Ballistic Gun Assault Rifle Ballistic Cannon Battle Cannon Launcher Grenade Launcher Impact Weapon Maul Build | -11 -10 -10 ------- Run | Yrd Mat Sub Slots Evolved . | . . . Power . | . . . Propulsion . | . . . Utility . | . . . Weapon . | . . . Parts Attached 72 | 5 21 46 Power 2 | . 1 1 Engine 2 | . 1 1 Core . | . . . Reactor . | . . . Propulsion 4 | 2 1 1 Treads 4 | 2 1 1 Leg . | . . . Wheel . | . . . Hover . | . . . Flight . | . . . Utility 25 | 2 7 16 Device 13 | 2 2 9 Storage 3 | . 2 1 Processor . | . . . Hackware . | . . . Protection 9 | . 3 6 Artifact . | . . . Weapon 41 | 1 12 28 Energy Gun 2 | . 2 . Energy Cannon 8 | . 4 4 Ballistic Gun 5 | 1 2 2 Ballistic Cannon 9 | . . 9 Launcher 2 | . 1 1 Special Weapon . | . . . Impact Weapon 15 | . 3 12 Slashing Weapon . | . . . Piercing Weapon . | . . . Special Melee Weapon . | . . . Unidentified Prototypes . | . . . Parts Lost 5 | . . 5 Power 2 | . . 2 Propulsion 1 | . . 1 Utility 1 | . . 1 Weapon 1 | . . 1 Highest Loss Streak 2 | . . 2 To Critical Strikes . | . . . Average Slot Usage (%) 99 | . 99 99 Engine 14 | . 14 14 Treads 27 | . 27 28 Device 9 | . 5 10 Storage 14 | . 14 14 Protection 4 | . 8 3 Energy Gun 1 | . 4 . Energy Cannon 12 | . 9 14 Ballistic Gun 2 | . 9 . Ballistic Cannon 3 | . . 4 Impact Weapon 7 | . 4 8 Peak Build Rating 14 | 7 12 14 Average Rating 11 | 6 10 12 On Entrance 8 | 6 7 12 Naked Turns . | . . . Heaviest Build 98 | 12 57 98 Greatest Support 40 | 40 40 40 Greatest Overweight (x) 2 | . 1 2 Average Overweight (x) 1 | . . 1 Largest Inventory Capacity 25 | 8 20 25 Average Capacity 22 | 8 16 24 Most Carried 25 | 6 20 25 Average Carried 21 | 4 15 24 Final Capacity 25 | 8 20 25 Final Carried 25 | 6 20 25 Class Distribution -------------------- 100% | Mutant Dominant Class ---------------- Mutant | -10/Materials Mutant | -10/Subcaves Resources | -11 -10 -10 ----------- Run | Yrd Mat Sub Matter Collected 1372 | 286 521 565 Remotely . | . . . Salvage Created 1212 | 164 496 552 Parts 83 | 10 38 35 Haulers Intercepted 2 | . 2 . Recyclers Shooed 1 | 1 . . Parts Field Recycled . | . . . Retrieved Matter . | . . . Parts Self-Destructed 15 | . . 15 Prevented 1 | . . 1 Kills | -11 -10 -10 ------- Run | Yrd Mat Sub Combat Hostiles Destroyed 22 | . 11 11 Guns 4 | . 3 1 Cannons 14 | . 6 8 AOE 3 | . 1 2 Classes Destroyed 10 | 2 6 2 Worker 1 | . 1 . Builder 2 | . 2 . Tunneler 4 | 4 . . Hauler 2 | . 2 . Recycler 1 | 1 . . Watcher 3 | . 3 . Swarmer 7 | . 6 1 Grunt 6 | . 5 1 Sentry 1 | . . 1 Subdweller 8 | . . 8 Best Kill Streak 6 | 3 6 2 Combat Bots Only 3 | . 3 2 Max Kills in Single Turn 4 | 1 4 2 Gunslinging . | . . . Exploded 2 | . 1 2 Melee . | . . . Uniques/NPCs Destroyed . | . . . Combat | -11 -10 -10 -------- Run | Yrd Mat Sub Hostile Shots Fired 89 | . 47 42 Missed 21 | . 10 11 Damage Taken 1412 | . 358 1054 Core 295 | . 59 236 Absorbed by Shields . | . . . Regen/Repaired (Parts) 102 | . 102 . Core Remaining (%) 100 | 100 . . Volleys Fired 111 | 12 59 40 Largest 2 | 2 2 2 Hottest 112 | 60 76 112 Shots Fired 164 | 24 79 61 Gun 77 | 24 47 6 Cannon 83 | . 31 52 Launcher 4 | . 1 3 Special . | . . . Kinetic 74 | 12 41 21 Thermal 18 | 12 6 . Explosive 4 | . 1 3 Electromagnetic 68 | . 31 37 Robot Hit Streak 15 | 14 11 15 Robot Miss Streak 5 | 1 5 2 Penetration Max . | . . . Secondary Targets . | . . . Shots Hit Robots 115 | 18 48 49 Core Hits 51 | 6 24 21 Critical Kills . | . . . Critical Parts Destroyed . | . . . Critical Strikes 1 | . . 1 Corrupt 1 | . . 1 Melee Attacks 38 | . 4 34 Impact 38 | . 4 34 Slashing . | . . . Piercing . | . . . Sneak Attacks . | . . . Combat Hostiles . | . . . Follow-up Attacks . | . . . Damage Inflicted 2540 | 218 1074 1248 Guns 638 | 218 355 65 Cannons 1281 | . 452 829 Explosions 477 | . 240 237 Melee 117 | . . 117 Ramming 27 | . 27 . Kinetic 725 | 131 321 273 Thermal 257 | 87 81 89 Explosive 341 | . 193 148 Electromagnetic 1073 | . 452 621 Impact 117 | . . 117 Slashing . | . . . Piercing . | . . . Highest Corruption . | . . . Average Corruption . | . . . Corruption Purged . | . . . Corruption Blocked . | . . . Overload Shots . | . . . Overflow Damage 34 | . 32 2 Projectiles 5 | . 3 2 Explosions 29 | . 29 . Melee . | . . . Knockbacks . | . . . Impact . | . . . Kinetic . | . . . Secondary . | . . . Self-Inflicted Damage 78 | . 40 38 Shots 3 | . 1 2 Rammed 3 | . 3 . Targets Rammed 3 | . 3 . Kicked . | . . . Crushed . | . . . Highest Temperature 226 | . 226 12 Average Temperature 60 | . 63 5 Received Heat Transfer 108 | . 42 66 Siege Activations . | . . . Robots Corrupted 2 | . 1 1 Combat Hostiles 2 | . 1 1 Parts Fried 4 | . 1 3 Impact Corruptions . | . . . Robots Melted . | . . . Combat Hostiles . | . . . Parts Melted 1 | 1 . . Heat Transferred 425 | 200 125 100 Parts Sabotaged . | . . . Parts Stolen . | . . . Parts Stripped . | . . . Power Chain Reactions 3 | . 1 2 Alert | -11 -10 -10 ------- Run | Yrd Mat Sub Peak Influence 249 | 25 249 . Initial 16 | . 16 . Average 107 | 12 111 . Maximum Alert Level 1 | . 1 . Low Security (%) 83 | 100 82 . Level 1 16 | . 17 . Level 2 . | . . . Level 3 . | . . . Level 4 . | . . . Level 5 . | . . . High Security . | . . . Max Security . | . . . Squads Dispatched 1 | . 1 . Investigation 1 | . 1 . Extermination . | . . . Reinforcement . | . . . Assault . | . . . Garrison . | . . . Intercept . | . . . Searches Triggered . | . . . Construction Impeded . | . . . Haulers Reinforced . | . . . Active Scanning Responses . | . . . Cargo Convoy Interrupts . | . . . Stealth | -11 -10 -10 --------- Run | Yrd Mat Sub Distress Signals 1 | . 1 . Communications Jammed . | . . . Distress Signals . | . . . Times Spotted 33 | . 21 12 Peak Tracking Total 4 | . 4 2 Tactical Retreats 4 | . 3 1 Traps | -11 -10 -10 ------- Run | Yrd Mat Sub Traps Triggered 3 | . 1 2 Indirectly . | . . . Trap Hack Attempts . | . . . Triggered . | . . . Disarmed . | . . . Reprogrammed . | . . . Reused . | . . . Traps Extracted . | . . . Installed . | . . . Triggered . | . . . Machines | -11 -10 -10 ---------- Run | Yrd Mat Sub Machines Disabled . | . . . Max in Single Turn . | . . . Machines Repaired . | . . . Machines Dismantled . | . . . Machines Sabotaged . | . . . Overloaded Fab Kills . | . . . Hacking | -11 -10 -10 --------- Run | Yrd Mat Sub Machines Accessed 12 | . 11 1 Terminals 8 | . 8 . Fabricators . | . . . Repair Stations 1 | . 1 . Recycling Units 2 | . 2 . Scanalyzers . | . . . Garrison Access . | . . . Total Hacks 43 | . 38 5 Successful 31 | . 26 5 Failed 11 | . 11 . Catastrophic 1 | . 1 . Database Lockouts 1 | . 1 . Manual 24 | . 24 . Terminals 28 | . 28 . Fabricators . | . . . Repair Stations 6 | . 6 . Recycling Units 4 | . 4 . Scanalyzers . | . . . Garrison Access . | . . . Terminal Hacks 13 | . 8 5 Record 5 | . . 5 Robot Analysis 2 | . 2 . Prototype ID Bank 1 | . 1 . Terminal Index 1 | . 1 . Alert Level 1 | . 1 . Locate Traps 1 | . 1 . Dispatch Records 1 | . 1 . Zone Layout 1 | . 1 . Fabricator Hacks . | . . . Repair Station Hacks 5 | . 5 . Scan Component 3 | . 3 . Repair 2 | . 2 . Recycling Unit Hacks 1 | . 1 . Retrieve Components 1 | . 1 . Scanalyzer . | . . . Garrison Access Hacks . | . . . Unauthorized Hacks 12 | . 12 . Terminals 11 | . 11 . Botnet 4 | . 4 . Operators 2 | . 2 . Skim 5 | . 5 . Fabricators . | . . . Repair Stations . | . . . Recycling Units 1 | . 1 . Recyclers 1 | . 1 . Scanalyzers . | . . . Garrison Access . | . . . Data Cores Recovered . | . . . Used . | . . . Hacking Detections 9 | . 9 . Full Trace Events 1 | . 1 . Feedback Events . | . . . Feedback Blocked . | . . . Robot Schematics Acquired . | . . . Robots Built . | . . . Authchips . | . . . Time . | . . . Total Robot Build Rating . | . . . Part Schematics Acquired . | . . . Parts Built . | . . . Authchips . | . . . Time . | . . . Total Part Build Rating . | . . . Parts Repaired 2 | . 2 . Time 58 | . 58 . Parts Recycled . | . . . Recycled Matter . | . . . Retrieved Matter . | . . . Retrieved Components 9 | . 9 . Parts Scanalyzed . | . . . Part Schematics Acquired . | . . . Parts Damaged . | . . . Bothacking | -11 -10 -10 ------------ Run | Yrd Mat Sub Used RIF Installer . | . . . Robots Hacked . | . . . Non-combat . | . . . Combat . | . . . Robot Hacks Applied . | . . . Relay Couplers Released . | . . . Fabnet Peak Effective % . | . . . Robots Rewired . | . . . Allies Hacked . | . . . Hacks Repelled . | . . . Allies | -11 -10 -10 -------- Run | Yrd Mat Sub Total Allies . | . . . Largest Group . | . . . Highest-Rated Group . | . . . Highest-Rated Ally . | . . . Total Orders . | . . . Ally Attacks . | . . . Total Damage . | . . . Kills . | . . . Allies Corrupted . | . . . Allies Melted . | . . . Intel | -11 -10 -10 ------- Run | Yrd Mat Sub Robot Analysis Total 2 | . 2 . Derelict Logs Recovered 1 | . . 1 Drone Launches . | . . . Drone Recoveries . | . . . Exploration | -11 -10 -10 ------------- Run | Yrd Mat Sub Turns Passed 9736 | 92 2260 7384 Spaces Moved 3182 | 24 987 2171 Core . | . . . Treads 3182 | 24 987 2171 Legs . | . . . Wheels . | . . . Hover . | . . . Flight . | . . . Fastest Speed 160 | 160 160 240 Average Speed 269 | 160 183 309 Slowest Speed 320 | 160 240 320 Overloaded Moves . | . . . Propulsion Burnouts . | . . . Robots Hopped . | . . . Cave-ins Triggered 1 | . . 1 Exploration Rate (%) 63 | 3 99 89 Regions Visited 2 Branch Regions 1 Pre-discovered Areas 2 | . 2 . Known Exits Taken 1 | . 1 . Unknown Exits Taken 1 | 1 . . Scrap Searched 4 | . . 4 Spaces Dug 14 | . 4 10 Terrain Destroyed 54 | . 13 41 Melee 14 | . 4 10 Projectile . | . . . AOE 40 | . 9 31 Terrain Rammed . | . . . Walls Destroyed . | . . . Machines Disabled . | . . . Actions | -11 -10 -10 --------- Run | Yrd Mat Sub Total 4094 | 52 1348 2694 Wait 614 | 9 235 370 Move 3180 | 23 986 2171 Hop . | . . . Pick Up 45 | 1 25 19 Fast Attach 7 | 1 4 2 Attach 4 | . . 4 Detach . | . . . Swap 61 | 4 17 40 Drop 30 | 2 15 13 Fire 111 | 12 59 40 Melee 38 | . 4 34 Ram . | . . . Kick . | . . . Crush 3 | . 3 . Escape Stasis . | . . . Rewire 1 | . . 1 Trap . | . . . Miscellaneous . | . . . Route ------- -11/Scrapyard -10/Materials (discovered 6 exits: *Mat x3 / *Min x2 / *Sub) -10/Subcaves (discovered 2 exits: [*Mat x2]) History --------- Turn | Location | Event 28 | -11/Scrapyard | Discovered new exit (range 2) 93 | -11/Scrapyard | Entered Materials 310 | -10/Materials | Build established: Mutant 330 | -10/Materials | Discovered new exit (range 14) 568 | -10/Materials | Discovered new exit (range 9) 860 | -10/Materials | Discovered new exit (range 12) 1154 | -10/Materials | Central database locked down 1247 | -10/Materials | Discovered new exit (range 10) 1348 | -10/Materials | Discovered new exit (range 13) 1455 | -10/Materials | Learned Storage trap positions 1490 | -10/Materials | Identified exit to Materials 1498 | -10/Materials | Repaired Lgt. EM Pulse Cannon 1526 | -10/Materials | Repaired Lgt. Treads 1528 | -10/Materials | Identified exit to Mines 1528 | -10/Materials | Identified exit to Subcaves 1533 | -10/Materials | Learned 2 Mines zone layouts 1534 | -10/Materials | Learned location of Storage (-8) 1535 | -10/Materials | Learned location of 1 exit from Recycling 1555 | -10/Materials | Learned Storage emergency access door positions 1579 | -10/Materials | Learned 2 Storage zone layouts 2353 | -10/Materials | Entered Subcaves 2683 | -10/Subcaves | Shifting Twisted Machinery released Sub. Optics 2696 | -10/Subcaves | Shifting Twisted Machinery released Battle Cannon 3017 | -10/Subcaves | A swath of the cavern ceiling suddenly collapsed 3408 | -10/Subcaves | Disturbed a concealed Subdweller 3603 | -10/Subcaves | Shifting Twisted Machinery released Mak. Light Armor Plating 3864 | -10/Subcaves | Discovered new exit (range 15) 4268 | -10/Subcaves | A swath of the cavern ceiling suddenly collapsed 4461 | -10/Subcaves | Shifting Twisted Machinery released Flamer 4468 | -10/Subcaves | Shifting Twisted Machinery released Sub. Machine Gun 4732 | -10/Subcaves | Discovered new exit (range 12) 5182 | -10/Subcaves | Core integrity fell below 50% 6969 | -10/Subcaves | Visited Clippyterm 6978 | -10/Subcaves | Learned Factory emergency access door positions 6978 | -10/Subcaves | Learned Factory stockpile data 7847 | -10/Subcaves | Learned 4 Materials zone layouts 9395 | -10/Subcaves | Core integrity fell below 20% 9738 | -10/Subcaves | Crushed by falling debris 9738 | -10/Subcaves | Smashed by cave-in Last Messages --------------- 09050_ Acquired 20 matter. 09178_ Acquired Sub. Machine Gun. 09232_ Searching scrap... 09232_ Found Battle Rifle. 09232_ Found Sub. Power Source. 09232_ Found 45 Matter. 09233_ Acquired 10 matter. 09251_ Subatomizers dissect the Battle Rifle. 09391_ Critical hit (Burn: +37). 09396_ Y-45 Defender destroyed. 09401_ Corrupted Heat Sink fries itself beyond repair. 09402_ Beam Rifle self-destruct mechanism malfunctions. 09407_ Corrupted Imp. Ion Engine fries itself beyond repair. 09412_ Hvy. Assault Rifle fries itself beyond repair. 09441_ Acquired 30 matter. 09456_ Subatomizers dissect the Beam Rifle. 09738_ The unstable cave ceiling collapses. 09738_ Crushed by falling debris. 09738_ Ion Engine destroyed. 09738_ System corrupted by crushing effect (+1). Map ----- +----------------------------------------------------+ | ?????????????????????????????????????????????????? | | ?????????????????????????????????????????????????? | | ?????????????????????????????????????????????????? | | ?????????????????????????????????????????????????? | | ?????????????????????????????????????????????????? | | ?????????????????????##### ?????????????????????? | | ????????????????????# ?????????????????????? | | ?????????????##????? ??????????????????????? | | ?????????##### ##??? ???????????????????????? | | ?????????# ??# #???????????????????????? | | ?????????# ??# #???#???????????????????? | | ?????????# ?## ###"" ??????????????????? | | ??????????# ## "???????????????????? | | ??? ## #### ## ?????????????????????? | | ??? #???????????????????????? | | ?? #?????????????????????????? | | ????? #??????????????????????????? | | ????????????# ##?????????????????????????? | | ????????????#### ##????????????????????????? | | ??????????###### #????????????????????????? | | ????????### #????????????????????????? | | ????????# #????????????????????????? | | ????????# %[ ##????????????????????????? | | ????????# ###????????????????????????? | | ????????# ## ##??????????????????????? | | ???####?# ## ###@#??????????????????????? | | ??## #?# ## #;#??????????????????????? | | ??# ####### ##??????????????????????? | | ??## #### #???????????????????????? | | ???# ## #???????????????????????? | | ???# ##???????????????????????? | | ???# ####????????????????????????? | | ???# ######## ####?????????????????????????? | | ???# ##?????# ## ##????????????????????????? | | ???# #?????## #????????????????????????? | | ???# ##?##### ##???????????????????????? | | ???## ### ## #???????????????????????? | | ????## ##???????????????????????? | | ?????# ##????????????????????????? | | ?????# #?????????????????????????? | | ?????## #?????????????????????????? | | ?????### ## #?????????????????????????? | | ?????# ### ##?????????????????????????? | | ????## #? ######????????????????????????### | | ????# ### ###????????????????????????????## | | ????## #?####????????????????????????####??# | | ????# ##?????????????????????????????# #### | | ????# ##??????????????????????????????# ## | | ????## #??????????????????????????????## ## | | ?????# ###???????????????????????????????## | +----------------------------------------------------+ Best States ------------- Heat Dissipation 25 Energy Generation 10 Energy Capacity 250 Matter Stores 300 Matter Capacity 300 Sight Range 16 Terrain Scan Density 10 Armor Coverage 150 Evasion (%) 40 Recoil Reduction 2 Item Schematics ----------------- None Robot Schematics ------------------ None Fabricated ------------ Nothing Alien Tech Used ----------------- None Achievements -------------- None Challenges ------------ None Game ------ Seed TripodAblativeBiocell Manual? 0 Play Time 01:08:10 Cumulative 107.2 hours Start 2024.09.16 @ 21:16:57 End 2024.09.18 @ 00:13:51 Sessions 2 Manual Loads 0 Difficulty Rogue Special Mode None Game No. 68 Rogue 68 Adventurer 0 Explorer 0 Win Type - Total 0 Types 0/0/0/0/0/0/0/0/0 Lore% 24 Gallery% 49 Achievement% 41 Wizard Run 0 Options --------- Layout 0 ASCII 0 Keyboard 0 Movement Numpad Keybinds 1 Fullscreen 2 Font 18/SmallcapsGlow Map View 76x50 Zoom Use 0% Tactical HUD 1 Map Filters NONE Filters NONE Steam 1 RUN: c15c16ac-b71a-4ec3-b3bb-2bb32f653d07